[Event "German Bundesliga 2022-23"]
[Site "Germany"]
[Date "2022.10.23"]
[Round "2.8"]
[White "Lutz, Ruben"]
[Black "Ribli, Zoltan"]
[Result "1/2-1/2"]
[ECO "D44"]
[WhiteElo "2098"]
[BlackElo "2526"]
[Annotator "TA"]
[PlyCount "56"]
[EventDate "2022.10.21"]
[EventType "team-tourn"]
[EventCountry "GER"]
[SourceTitle "playchess.com"]
[Source "ChessBase"]
[SourceQuality "1"]
[TimeControl "40/6000+30:3000+30"]

{[%evp 39,42,0,0,0,49]} 1. d4 {[%emt 0:00:03]} Nf6 {[%emt 0:00:06]} 2. Nf3 {[%emt 0:00:09]} d5 {[%emt 0:00:06]} 3. c4 {[%emt 0:00:08]} e6 {[%emt 0:00:04]} 4. Nc3 {[%emt 0:00:11]} c6 {[%emt 0:00:04]} 5. Bg5 {[%emt 0:00:14]} dxc4 {[%emt 0:00:04]} 6. e4 {[%emt 0:00:10][%cal Be2e4,Be4e5][%mdl 32]} b5 {[%emt 0:00:03]} 7. e5 {[%emt 0:00:08]} h6 {[%emt 0:00:03]} 8. Bh4 {[%emt 0:00:05]} g5 {[%emt 0:00:03]} 9. Nxg5 {[%emt 0:00:07]} hxg5 {[%emt 0:00:02]} 10. Bxg5 {[%emt 0:00:07]} Nbd7 {[%emt 0:00:01]} 11. g3 {[%emt 0:00:12]} Bb7 {[%emt 0:00:04]} 12. Bg2 {[%emt 0:00:45]} Qb6 {[%emt 0:00:04]} 13. exf6 {[%emt 0:00:21]} O-O-O {[%emt 0:00:46]} 14. O-O {[%emt 0:01:11]} c5 {[%emt 0:00:03]} 15. d5 {[%emt 0:15:04]} b4 {[%emt 0:00:08]} 16. Na4 {[%emt 0:00:09]} Qb5 {[%emt 0:01:28]} 17. dxe6 {[%emt 0:48:13]} Bxg2 {[%emt 0:00:23]} 18. Kxg2 {[%emt 0:00:03]} Qc6+ {[%emt 0:10:19]} 19. f3 {[%emt 0:00:05]} Qxe6 {[%emt 0:01:29]} 20. Qc2 {[%emt 0:02:09]} Ne5 {[%emt 0:15:33] [#] ...b3 is the strong threat.} 21. Rae1 {[%emt 0:09:12] D44: Semi-Slav: Botvinnik System.} Rd3 {[%emt 0:07:32] [#] An even fight not without its subleties.} (21... Rd4 $11) {Predecessor:} 22. h4 $146 Bd6 23. b3 Qd5 24. bxc4 Nxc4 25. Rd1 Ne5 26. Rxd3 Qxd3 27. Qxd3 Nxd3 28. Rd1 c4 {½-½ (39) Nikolic,P (2490)-Tal,M (2620) Niksic 1983} 1/2-1/2

[Event "German Bundesliga 2022-23"]
[Site "Germany"]
[Date "2022.10.23"]
[Round "2.9"]
[White "Cheparinov, Ivan"]
[Black "Plenca, Julijan"]
[Result "1-0"]
[ECO "C78"]
[WhiteElo "2689"]
[BlackElo "2447"]
[Annotator "TA"]
[PlyCount "75"]
[EventDate "2022.10.21"]
[EventType "team-tourn"]
[EventCountry "GER"]
[SourceTitle "playchess.com"]
[Source "ChessBase"]
[SourceQuality "1"]
[TimeControl "40/6000+30:3000+30"]

{[%evp 16,75,41,8,10,0,24,0,30,12,25,23,30,16,36,38,39,46,57,56,70,71,75,58,67,30,53,29,29,37,20,19,23,4,78,75,78,82,186,106,134,127,124,89,124,129,122,132,104,13,411,428,420,410,1075,1052,1119,1061,1024,1059,1000,951]} 1. e4 {[%emt 0:00:03] CB} e5 {[%emt 0:00:13]} 2. Nf3 {[%emt 0:00:05]} Nc6 {[%emt 0:00:06]} 3. Bb5 {[%emt 0:00:05][%cal Bf1b5,Bb5a4,Ba4b3][%mdl 32]} a6 {[%emt 0:00:18]} 4. Ba4 {[%emt 0:00:05]} Nf6 {[%emt 0:00:13]} 5. O-O {[%emt 0:00:07]} b5 {[%emt 0:00:08]} 6. Bb3 {[%emt 0:00:05]} Bc5 {[%emt 0:00:03]} 7. c3 {[%emt 0:03:16]} d6 {[%emt 0:00:22]} 8. d4 {[%emt 0:00:19]} Bb6 {[%emt 0:00:06]} 9. Be3 $1 {[%emt 0:00:06][%mdl 4] is recently more successful than 9.a4.} (9. a4 $5 {[%cal Ra4b5]}) 9... O-O {[%emt 0:08:00] C78: Ruy Lopez: Archangelsk and Möller Defences.} 10. Nbd2 {[%emt 0:00:07]} h6 {[%emt 0:02:50]} 11. h3 {[%emt 0:00:54]} Rb8 {[%emt 0:09:35] The position is equal.} 12. Re1 {[%emt 0:05:42]} Re8 {[%emt 0:01:36]} 13. Bc2 {[%emt 0:08:31]} Bd7 {[%emt 0:13:13]} 14. Rc1 {[%emt 0:04:24]} Nh7 {[%emt 0:10:12] [#]} 15. Nf1 $146 {[%emt 0:05:03][%cal Bd2f1,Bf1h2,Bh2f3][%mdl 32]} ({Predecessor:} 15. Bd3 Qf6 16. Nb3 Nf8 17. Kh2 g5 18. d5 Ne7 19. c4 Bxe3 20. Rxe3 c5 21. dxc6 Bxc6 {0-1 (45) Anand,V (2780)-Caruana,F (2757) Zuerich 2013 CBM 153 [CB]}) 15... Na5 {[%emt 0:08:22]} 16. b3 {[%emt 0:02:52] Prevents Nc4.} c5 {[%emt 0:02:31]} 17. d5 {[%emt 0:07:46] Against Nc6} h5 {[%emt 0:08:48]} 18. N3d2 {[%emt 0:07:29]} g6 {[%emt 0:00:39]} 19. c4 {[%emt 0:00:07]} Qf6 {[%emt 0:03:40]} 20. Nh2 {[%emt 0:05:07]} Bd8 {[%emt 0:00:45]} 21. Rf1 {[%emt 0:02:46]} Qg7 {[%emt 0:00:38]} 22. f4 {[%emt 0:11:53]} exf4 {[%emt 0:01:46]} 23. Bxf4 {[%emt 0:00:04]} Rb6 {[%emt 0:05:44]} 24. Kh1 {[%emt 0:11:16]} Bf6 {[%emt 0:04:47]} (24... g5 $11 25. Be3 g4) 25. Nhf3 $16 {[%emt 0:03:05]} g5 {[%emt 0:03:21]} 26. e5 $1 {[%emt 0:01:16]} dxe5 {[%emt 0:02:55]} (26... gxf4 $16 {keeps fighting.} 27. Bxh7+ (27. exf6 Nxf6 28. Re1 Rbb8 $11) 27... Kxh7 28. exf6 Qxf6) 27. Be3 {[%emt 0:07:23]} (27. Bxh7+ $18 Kxh7 28. Bxg5 $1) 27... g4 {[%emt 0:02:16]} 28. Bxc5 {[%emt 0:02:59]} Rbb8 {[%emt 0:07:30]} 29. Ng1 {[%emt 0:05:11]} Bd8 {[%emt 0:01:29]} 30. Ne4 $36 {[%emt 0:00:58][%mdl 2048] Strongly threatening Nd6. White is really pushing.} Nb7 {[%emt 0:01:26]} 31. Ba7 {[%emt 0:07:03] White has more active pieces.} Ra8 {[%emt 0:00:50] [#]} 32. Be3 {[%emt 0:00:45]} (32. Bf2 $1 $16) 32... gxh3 $2 {[%emt 0:01:26][%mdl 8192] This move loses the game for Black.} (32... f5 $11 {and Black stays safe.}) 33. gxh3 $18 {[%emt 0:00:31] Black must now prevent Rf2.} f5 {[%emt 0:00:58]} 34. Qxh5 {[%emt 0:03:00] Chess con chili.} Bf6 {[%emt 0:04:28]} (34... Qf7 $142 35. Qxf7+ Kxf7) 35. Ne2 {[%emt 0:02:08] White is clearly winning.} fxe4 {[%emt 0:01:45]} 36. Rg1 {[%emt 0:00:20][%mdl 64] Zwischenzug} Nd6 {[%emt 0:00:13]} 37. c5 {[%emt 0:00:55]} Nf5 {[%emt 0:00:24]} 38. Bxe4 {[%emt 0:00:10] Weighted Error Value: White=0.17 (very precise) /Black=0.38} 1-0

[Event "German Bundesliga 2022-23"]
[Site "Germany"]
[Date "2022.10.23"]
[Round "2.9"]
[White "Moussard, Jules"]
[Black "Schroeder, Jan-Christian"]
[Result "1/2-1/2"]
[ECO "C83"]
[WhiteElo "2686"]
[BlackElo "2544"]
[Annotator "TA"]
[PlyCount "200"]
[EventDate "2022.10.21"]
[EventType "team-tourn"]
[EventCountry "GER"]
[SourceTitle "playchess.com"]
[Source "ChessBase"]
[SourceQuality "1"]
[TimeControl "40/6000+30:3000+30"]

{[%evp 21,200,38,28,35,61,50,41,27,28,45,43,35,81,78,79,86,82,83,81,82,85,77,75,81,72,74,74,73,79,73,77,72,75,60,66,65,64,64,87,64,67,67,67,64,64,56,62,50,56,50,54,35,35,29,35,35,52,47,47,29,29,0,0,0,29,8,8,8,8,8,8,8,23,23,23,23,23,23,23,23,23,0,23,23,23,23,23,23,23,23,23,23,23,23,23,0,0,0,0,0,8,8,8,8,8,0,8,0,8,0,0,0,0,0,0,0,8,8,8,8,8,8,8,0,8,0,8,0,8,0,8,0,0,0,0,0,8,0,8,0,0,0,0,0,0,0,0,0,0,0,0,0,0,0,0,0,0,0,0,0,0,0,0,0,0,0,0,0,0,0,0,0,0,0,0,0,0,0,0,0,0]} 1. e4 {[%emt 0:00:02]} e5 {[%emt 0:00:08]} 2. Nf3 {[%emt 0:00:05]} Nc6 {[%emt 0:00:07]} 3. Bb5 {[%emt 0:00:06][%cal Bf1b5,Bb5a4,Ba4b3,Bb3c2,Bc2b1][%mdl 32]} a6 {[%emt 0:00:26]} 4. Ba4 {[%emt 0:00:06]} Nf6 {[%emt 0:00:16]} 5. O-O {[%emt 0:00:08]} Nxe4 {[%emt 0:00:24]} 6. d4 {[%emt 0:00:24]} b5 {[%emt 0:00:06]} 7. Bb3 {[%emt 0:00:08]} d5 {[%emt 0:00:11]} 8. dxe5 {[%emt 0:00:07]} Be6 {[%emt 0:00:06]} 9. c3 {[%emt 0:01:10]} Be7 {[%emt 0:01:18]} 10. Nbd2 {[%emt 0:00:23]} Nc5 {[%emt 0:01:16]} 11. Bc2 {[%emt 0:00:07]} d4 {[%emt 0:01:02]} 12. Nb3 {[%emt 0:00:22][%cal Rf3d4] C83: Open Ruy Lopez: 9 c3 Be7.} d3 {[%emt 0:00:23]} 13. Bb1 {[%emt 0:00:06]} Nxb3 {[%emt 0:00:05]} 14. axb3 {[%emt 0:00:05] White is slightly better.} Bf5 {[%emt 0:00:04]} 15. Re1 {[%emt 0:00:10]} O-O {[%emt 0:01:33]} 16. b4 {[%emt 0:00:12]} a5 {[%emt 0:05:48] [#]} (16... Qd7 $14 {is superior.}) 17. bxa5 $1 $16 {[%emt 0:00:27]} Rxa5 {[%emt 0:02:27]} 18. Rxa5 {[%emt 0:00:06]} Nxa5 {[%emt 0:00:03]} 19. Nd4 {[%emt 0:00:11]} Bg6 {[%emt 0:00:11]} 20. Bxd3 {[%emt 0:00:23]} Bxd3 {[%emt 0:00:27]} 21. Qxd3 {[%emt 0:00:13]} c5 {[%emt 0:00:14] [#]} 22. Qxb5 $1 {[%emt 0:00:06] Threatens to win with Nf5. White is much more active.} cxd4 {[%emt 0:00:07] [#]} 23. Bd2 {[%emt 0:00:15]} Qb8 {[%emt 0:00:53]} 24. Qxa5 {[%emt 0:00:15]} Qxb2 {[%emt 0:00:04]} 25. cxd4 {[%emt 0:00:08]} Qxd4 {[%emt 0:00:04]} 26. Be3 {[%emt 0:03:22] [#]} Qd7 $146 {[%emt 0:04:20]} ({Predecessor:} 26... Qc4 27. Rd1 Qe6 28. Qd5 h5 29. Qxe6 fxe6 30. g3 Rd8 31. Ra1 Rd5 32. f4 Rd3 {½-½ (60) Lomasov,S (2525)-Raja,R (2408) Arandjelovac 2021}) 27. Qa6 {[%emt 0:16:54]} Qf5 {[%emt 0:04:01]} 28. Qb5 {[%emt 0:08:07]} h6 {[%emt 0:06:30]} 29. h3 {[%emt 0:05:35]} Rc8 {[%emt 0:11:39]} 30. Rd1 {[%emt 0:01:55]} Bg5 {[%emt 0:14:39]} 31. Bxg5 {[%emt 0:07:41]} hxg5 $14 {[%emt 0:08:12][%mdl 4096] Endgame KQR-KQR} 32. Qe2 {[%emt 0:04:31]} Re8 {[%emt 0:09:58]} 33. Rd5 {[%emt 0:12:40]} g6 {[%emt 0:09:14]} 34. Qe3 {[%emt 0:04:00]} Kg7 {[%emt 0:11:53]} 35. Qd4 {[%emt 0:03:24] And now e6+ would win.} Qf4 {[%emt 0:04:57]} 36. Qc3 {[%emt 0:09:10] Black must now prevent e6+.} Re6 {[%emt 0:01:06]} 37. Ra5 {[%emt 0:02:05]} Qe4 {[%emt 0:02:38]} 38. Rc5 {[%emt 0:04:20]} Qf4 {[%emt 0:03:05]} 39. Rb5 {[%emt 0:01:45]} Qe4 {[%emt 0:03:42]} 40. Qg3 {[%emt 0:01:21]} Qc4 {[%emt 0:03:27]} 41. Rb8 {[%emt 0:56:26]} Qc7 {[%emt 0:01:52]} 42. Rb5 {[%emt 0:00:02]} Qc4 {[%emt 0:50:02]} 43. Rb3 {[%emt 0:00:04]} Qf4 {[%emt 0:00:00]} 44. Qxf4 {[%emt 0:00:00]} gxf4 $11 {[%emt 0:00:00] KR-KR} 45. Rb5 {[%emt 0:00:00]} g5 {[%emt 0:00:00]} 46. Kf1 {[%emt 0:00:00]} f6 {[%emt 0:00:00]} 47. exf6+ {[%emt 0:00:00]} Kxf6 {[%emt 0:00:00]} 48. f3 {[%emt 0:00:00]} Re8 {[%emt 0:00:00]} 49. Rb4 {[%emt 0:00:00]} Kf5 {[%emt 0:00:00]} 50. Rb2 {[%emt 0:00:00]} Re7 {[%emt 0:00:00]} 51. Re2 {[%emt 0:00:00]} Ra7 {[%emt 0:00:00]} 52. Re1 {[%emt 0:00:00]} Ra8 {[%emt 0:00:00]} 53. Kg1 {[%emt 0:00:00]} Ra7 {[%emt 0:00:00]} 54. Rb1 {[%emt 0:00:00]} Rh7 {[%emt 0:00:00]} 55. Rb6 {[%emt 0:00:00]} Rh8 {[%emt 0:00:00]} 56. Kf2 {[%emt 0:00:00]} Ra8 {[%emt 0:00:00]} 57. Rh6 {[%emt 0:00:00]} Ra1 {[%emt 0:00:00]} 58. h4 {[%emt 0:00:00]} gxh4 {[%emt 0:00:00] The position is equal.} 59. Rh5+ {[%emt 0:00:00]} Kg6 {[%emt 0:00:00]} 60. Rxh4 {[%emt 0:00:00]} Kg5 {[%emt 0:00:00]} 61. Rh8 {[%emt 0:00:00]} Rb1 {[%emt 0:00:00]} 62. Re8 {[%emt 0:00:00]} Kf5 {[%emt 0:00:00]} 63. Re1 {[%emt 0:00:00]} Rb8 {[%emt 0:00:00]} 64. Ra1 {[%emt 0:00:00]} Rc8 {[%emt 0:00:00]} 65. Kg1 {[%emt 0:00:00]} Rh8 {[%emt 0:00:00]} 66. Ra5+ {[%emt 0:00:00]} Kf6 {[%emt 0:00:00]} 67. Ra7 {[%emt 0:00:00]} Kf5 {[%emt 0:00:00]} 68. Ra6 {[%emt 0:00:00]} Kg5 {[%emt 0:00:00]} 69. Kf2 {[%emt 0:00:00]} Rb8 {[%emt 0:00:00]} 70. Ra5+ {[%emt 0:00:00]} Kg6 {[%emt 0:00:00]} 71. Rc5 {[%emt 0:00:00]} Kf6 {[%emt 0:00:00]} 72. Rh5 {[%emt 0:00:00]} Rb1 {[%emt 0:00:00]} 73. Rd5 {[%emt 0:00:00]} Rb8 {[%emt 0:00:00]} 74. Rd2 {[%emt 0:00:00]} Re8 {[%emt 0:00:00]} 75. Re2 {[%emt 0:00:00]} Ra8 {[%emt 0:00:00]} 76. Ke1 {[%emt 0:00:00]} Kg5 {[%emt 0:00:00]} 77. Re7 {[%emt 0:00:00]} Ra2 {[%emt 0:00:00]} 78. Re8 {[%emt 0:00:00]} Rb2 {[%emt 0:00:00]} 79. Kf1 {[%emt 0:00:00]} Rb1+ {[%emt 0:00:00]} 80. Ke2 {[%emt 0:00:00]} Kf5 {[%emt 0:00:00]} 81. Kd3 {[%emt 0:00:00]} Rd1+ {[%emt 0:00:00]} 82. Kc3 {[%emt 0:00:00]} Rd7 {[%emt 0:00:00]} 83. Re2 {[%emt 0:00:00]} Rd8 {[%emt 0:00:18]} 84. Rb2 {[%emt 0:00:00]} Ke5 {[%emt 0:00:41]} 85. Ra2 {[%emt 0:00:00]} Kf5 {[%emt 0:01:06]} 86. Kc4 {[%emt 0:00:00]} Kg5 {[%emt 0:01:06]} 87. Ra5+ {[%emt 0:00:00]} Kf6 {[%emt 0:00:46]} 88. Rh5 {[%emt 0:00:00]} Rd2 {[%emt 0:00:43]} 89. Rh2 {[%emt 0:00:00]} Rd8 {[%emt 0:00:55]} 90. Rh4 {[%emt 0:00:00]} Kf5 {[%emt 0:00:07]} 91. Rg4 {[%emt 0:00:00]} Ke5 {[%emt 0:00:48]} 92. Kb5 {[%emt 0:00:00]} Rc8 {[%emt 0:00:24]} 93. Kb6 {[%emt 0:00:00]} Rc2 {[%emt 0:00:46]} 94. Rg7 {[%emt 0:00:00]} Kf5 {[%emt 0:00:19]} 95. g3 {[%emt 0:00:00]} fxg3 {[%emt 0:00:31]} 96. Rxg3 {[%emt 0:00:00]} Kf4 {[%emt 0:00:07]} 97. Rh3 {[%emt 0:00:00]} Rf2 {[%emt 0:00:10]} 98. Rh8 {[%emt 0:00:00]} Rxf3 {[%emt 0:00:06]} 99. Rf8+ {[%emt 0:00:00]} Kg3 {[%emt 0:00:04]} 100. Rxf3+ {[%emt 0:00:00]} Kxf3 {[%emt 0:00:05] Weighted Error Value: White=0.05 (flawless) /Black=0.04 (flawless)} 1/2-1/2

[Event "German Bundesliga 2022-23"]
[Site "Germany"]
[Date "2022.10.23"]
[Round "2.9"]
[White "McShane, Luke J"]
[Black "Harikrishna, Pentala"]
[Result "1-0"]
[ECO "C68"]
[WhiteElo "2653"]
[BlackElo "2717"]
[Annotator "TA"]
[PlyCount "103"]
[EventDate "2022.10.21"]
[EventType "team-tourn"]
[EventCountry "GER"]
[SourceTitle "playchess.com"]
[Source "ChessBase"]
[SourceQuality "1"]
[TimeControl "40/6000+30:3000+30"]

{[%evp 9,103,13,14,17,29,12,25,12,17,10,6,0,0,-3,19,-12,22,25,29,13,18,19,18,12,48,58,92,102,104,84,84,90,89,85,93,85,119,119,117,117,117,112,122,114,131,125,129,127,130,116,117,93,137,137,144,141,151,134,147,148,147,155,171,166,170,170,159,159,160,123,123,123,159,133,125,118,133,133,357,322,362,355,355,315,352,340,496,441,597,496,591,586,593,570,565,408]} 1. e4 {[%emt 0:00:04]} e5 {[%emt 0:00:07]} 2. Nf3 {[%emt 0:00:05]} Nc6 {[%emt 0:00:04]} 3. Bb5 {[%emt 0:00:04]} a6 {[%emt 0:00:09]} 4. Bxc6 {[%emt 0:00:21]} dxc6 {[%emt 0:00:06]} 5. O-O {[%emt 0:00:06]} Qf6 {[%emt 0:00:36]} 6. d4 {[%emt 0:00:20] C68: Ruy Lopez: Exchange Variation, sidelines.} exd4 {[%emt 0:00:12]} 7. Bg5 {[%emt 0:00:04]} Qd6 {[%emt 0:00:18]} 8. Nxd4 {[%emt 0:00:07] White has an edge.} Be7 {[%emt 0:00:32] 8...Be7 scores better than 8...Bd7.} 9. Be3 {[%emt 0:00:06]} Nh6 {[%emt 0:01:20]} 10. f3 {[%emt 0:02:36] Prevents Ng4.} f5 {[%emt 0:06:45]} 11. Nc3 {[%emt 0:00:43][%cal Bb1c3,Bc3e4,Be4g3][%mdl 32]} O-O {[%emt 0:07:45]} 12. Qe2 {[%emt 0:19:21]} fxe4 {[%emt 0:14:46]} (12... f4 $5 {[%cal Rf4e3]} 13. Bf2 Nf7 $11) 13. Nxe4 {[%emt 0:00:34]} Qg6 {[%emt 0:00:09] [#]} 14. Rfe1 $5 $146 {[%emt 0:24:40][%mdl 8] New and interesting.} ({Predecessor:} 14. Bf2 Nf5 15. Nxf5 Bxf5 16. Bg3 Bd6 17. Nxd6 cxd6 18. Qe7 Rf7 19. Qxd6 Qxd6 20. Bxd6 Bxc2 {½-½ (38) Luther,T (2567)-Geske,J (2398) Germany 2015}) 14... Nf5 {[%emt 0:16:31]} 15. Bf2 $36 {[%emt 0:02:39][%mdl 2048] White has some pressure.} Nxd4 {[%emt 0:08:30]} 16. Bxd4 {[%emt 0:00:07]} Re8 {[%emt 0:00:48]} 17. Ng3 {[%emt 0:08:51]} Kf7 {[%emt 0:19:25]} 18. Qe5 {[%emt 0:02:50]} Be6 {[%emt 0:02:11]} 19. Nh5 {[%emt 0:10:03] [#] Nf4 is the strong threat. White is more active.} Bf6 {[%emt 0:04:22]} 20. Nxf6 {[%emt 0:00:50]} ({Avoid the trap} 20. Qxc7+ $2 Re7 21. Qxe7+ Bxe7 $17) 20... gxf6 {[%emt 0:00:30]} 21. Qxc7+ {[%emt 0:00:39]} Re7 {[%emt 0:00:38]} 22. Qf4 {[%emt 0:01:12]} Qf5 {[%emt 0:10:01]} 23. Re4 {[%emt 0:03:45]} Qxf4 {[%emt 0:03:38]} 24. Rxf4 {[%emt 0:00:02]} f5 {[%emt 0:00:06]} 25. Re1 {[%emt 0:05:38]} Rd8 {[%emt 0:06:53]} 26. g4 {[%emt 0:03:25]} Bc8 {[%emt 0:02:36]} 27. Rxe7+ {[%emt 0:00:40]} Kxe7 $16 {[%emt 0:00:06][%mdl 4096] Endgame KRB-KRB} 28. g5 {[%emt 0:05:35] Hoping for Bf6+.} Kf8 {[%emt 0:03:03]} 29. Rh4 {[%emt 0:02:20]} Be6 {[%emt 0:00:07]} 30. a4 {[%emt 0:04:25]} Rd7 {[%emt 0:01:22]} 31. Kf2 {[%emt 0:04:56]} Kg8 {[%emt 0:00:39]} 32. Ke3 {[%emt 0:02:15]} Rd5 {[%emt 0:00:23][%cal Of5f4]} 33. f4 {[%emt 0:01:08]} c5 {[%emt 0:01:37]} 34. Be5 {[%emt 0:00:51]} Bd7 {[%emt 0:00:19]} 35. a5 {[%emt 0:02:14]} Rd1 {[%emt 0:00:48]} 36. Rh6 {[%emt 0:00:24]} Bc6 {[%emt 0:00:21]} 37. h4 {[%emt 0:01:47][%cal Bh2h4,Bh4h5,Bh5h6][%mdl 32]} Rh1 {[%emt 0:00:19]} 38. h5 {[%emt 0:03:07]} Be8 {[%emt 0:00:48]} 39. Rb6 {[%emt 0:00:28]} Bc6 {[%emt 0:00:38]} 40. h6 {[%emt 0:00:07]} Kf7 {[%emt 0:00:26]} 41. Kd2 {[%emt 0:11:30]} Ra1 {[%emt 0:12:50]} 42. Rb3 {[%emt 0:05:34] Strongly threatening Rd3.} Rxa5 {[%emt 0:07:47]} 43. Rg3 {[%emt 0:01:22][%cal Og5g6] Intending g6+! and mate.} Kg6 $2 {[%emt 0:00:52] [#] Loses the game.} (43... c4 $16) 44. Rd3 $1 $18 {[%emt 0:00:07] Black must now prevent Rd6+.} Be8 {[%emt 0:00:07]} 45. Rd8 {[%emt 0:02:02]} Bf7 {[%emt 0:00:08]} 46. Rd6+ {[%emt 0:00:04]} Kh5 {[%emt 0:00:09]} 47. Rd7 {[%emt 0:00:03][%csl LRb7,LRf7]} Bg6 {[%emt 0:00:59]} (47... Kg6 $142 48. Rxb7 Rb5) 48. Rxb7 {[%emt 0:00:04] White is clearly winning.} Rb5 {[%emt 0:03:13]} 49. Ra7 {[%emt 0:00:06]} Ra5 {[%emt 0:03:57]} 50. Kc3 {[%emt 0:00:09]} Ra4 {[%emt 0:00:21]} 51. Rc7 {[%emt 0:00:33]} Kg4 {[%emt 0:00:50]} 52. Rc6 {[%emt 0:00:43] Weighted Error Value: White=0.07 (flawless) /Black=0.19 (very precise)} 1-0

[Event "German Bundesliga 2022-23"]
[Site "Germany"]
[Date "2022.10.23"]
[Round "2.10"]
[White "Korobov, Anton"]
[Black "Sedlak, Nikola"]
[Result "1/2-1/2"]
[ECO "D12"]
[WhiteElo "2672"]
[BlackElo "2472"]
[Annotator "TA"]
[PlyCount "110"]
[EventDate "2022.10.21"]
[EventType "team-tourn"]
[EventCountry "GER"]
[SourceTitle "playchess.com"]
[Source "ChessBase"]
[SourceQuality "1"]
[TimeControl "40/6000+30:3000+30"]

{[%evp 13,110,33,25,14,26,18,22,20,65,23,28,22,27,27,27,28,28,19,25,22,23,14,31,33,45,24,29,26,25,23,22,8,11,0,10,0,0,0,0,0,0,0,0,0,0,0,0,0,0,0,0,0,0,0,0,0,0,0,0,0,0,0,0,0,0,0,19,0,27,27,35,27,26,2,29,0,28,7,7,0,0,0,0,0,0,0,11,0,0,0,0,0,0,0,0,0,0,0,-1]} 1. d4 {[%emt 0:00:03]} d5 {[%emt 0:00:28]} 2. c4 {[%emt 0:00:17]} c6 {[%emt 0:00:10]} 3. Nf3 {[%emt 0:00:34]} Nf6 {[%emt 0:00:48]} 4. e3 {[%emt 0:00:06]} Bf5 {[%emt 0:00:28]} 5. Nc3 {[%emt 0:00:07]} e6 {[%emt 0:00:23]} 6. Nh4 {[%emt 0:00:11]} Bg6 {[%emt 0:00:10]} 7. Nxg6 {[%emt 0:00:37]} hxg6 {[%emt 0:00:07]} 8. Bd2 {[%emt 0:00:22] D12: Slav Defence: 3 Nf3 Nf6 4 e3 Bf5.} Nbd7 {[%emt 0:00:22]} 9. g3 {[%emt 0:01:09] 9.g3 has become a bit dusty these days.} Be7 {[%emt 0:09:21]} 10. b3 {[%emt 0:05:11]} e5 {[%emt 0:07:33]} (10... Ba3 {feels hotter.} 11. Bg2 Bb2 12. Rb1 Bxc3 13. Bxc3 Ne4) 11. cxd5 {[%emt 0:05:04]} (11. Bg2 {is interesting.} exd4 12. exd4 Nf8 13. cxd5 cxd5 14. Qf3) 11... exd4 {[%emt 0:02:05]} 12. exd4 {[%emt 0:03:03] Black should prevent dxc6.} Nxd5 {[%emt 0:00:08]} 13. Nxd5 {[%emt 0:01:17]} cxd5 {[%emt 0:00:08]} 14. Bg2 {[%emt 0:02:13]} Nf6 {[%emt 0:00:06]} 15. O-O {[%emt 0:00:43]} O-O {[%emt 0:00:17]} 16. Re1 {[%emt 0:04:33]} Re8 {[%emt 0:01:43] [#]} 17. Rc1 $146 {[%emt 0:06:36]} ({Predecessor:} 17. Bf4 Qd7 18. Qd3 Bb4 19. Rxe8+ Rxe8 20. Be5 Qc6 21. a3 Bf8 22. a4 a6 23. Bf3 {½-½ (58) Sasikiran,K (2652)-Malakhatko,V (2556) Vlissingen 2005}) 17... Qb6 {[%emt 0:04:21]} 18. Bf4 {[%emt 0:13:38]} Bd6 {[%emt 0:05:32]} 19. Rxe8+ {[%emt 0:03:23]} Rxe8 {[%emt 0:00:10]} 20. Be3 {[%emt 0:00:03]} Ne4 {[%emt 0:19:06]} 21. Qd3 {[%emt 0:09:47]} a6 {[%emt 0:02:25]} 22. Bf3 {[%emt 0:01:43]} Qd8 {[%emt 0:07:13]} 23. Kg2 {[%emt 0:01:09]} Qe7 {[%emt 0:01:45]} 24. Rc2 {[%emt 0:04:21]} Qe6 {[%emt 0:03:56]} 25. b4 {[%emt 0:04:53]} Qf5 {[%emt 0:02:05][%cal Oe4g3]} 26. Qb3 {[%emt 0:01:29]} g5 {[%emt 0:00:17][%cal Bg6g5,Bg5g4][%mdl 32]} 27. b5 {[%emt 0:04:27]} g4 {[%emt 0:10:14]} 28. Be2 {[%emt 0:02:02]} a5 {[%emt 0:09:25]} (28... Qh5 29. bxa6 bxa6 30. Qa4 $16) 29. b6 {[%emt 0:04:06]} Bb4 {[%emt 0:02:03]} 30. Qd3 {[%emt 0:12:01]} Be1 {[%emt 0:05:36][%cal Re1f2]} 31. Bf1 {[%emt 0:05:42]} Re6 {[%emt 0:04:10]} 32. Qd1 $1 {[%emt 0:04:37]} Bb4 {[%emt 0:03:00]} 33. Be2 {[%emt 0:02:15]} Rg6 {[%emt 0:02:17]} ({Don't do} 33... Rxb6 34. Bxg4 Qg6 35. Rc8+ Bf8 36. Ra8 $16) 34. Kg1 {[%emt 0:07:38]} Kh7 {[%emt 0:01:12]} 35. Kg2 {[%emt 0:00:06]} a4 {[%emt 0:01:44]} 36. Bd3 {[%emt 0:01:28]} Rxb6 {[%emt 0:01:39]} 37. Rb2 {[%emt 0:00:24] [#] Qb1 is the strong threat.} Ba5 {[%emt 0:03:51]} 38. Rxb6 {[%emt 0:00:11] The board is on fire.} Bxb6 {[%emt 0:00:05]} 39. Qxa4 {[%emt 0:00:30]} g6 {[%emt 0:00:51]} 40. Qb3 {[%emt 0:01:16]} Qe6 {[%emt 0:02:43]} 41. a4 {[%emt 0:50:39]} Kg7 {[%emt 0:15:09]} 42. Qb4 {[%emt 0:00:00]} Qd6 {[%emt 0:02:22]} 43. Qb5 {[%emt 0:00:00]} (43. Qb2 $5 {[%cal Rd3e4]} Qe6 44. Kf1 $14) 43... Qe6 {[%emt 0:03:17]} 44. Kf1 {[%emt 0:00:00] [#] aiming for Bxe4.} (44. Qb2 {looks sharper.} Kh7 45. Qb4 Qd6 46. Qb3) 44... Nf6 {[%emt 0:01:13]} 45. a5 {[%emt 0:00:00]} Bc7 {[%emt 0:00:17] The position is equal.} 46. Bd2 {[%emt 0:00:00]} Ne4 {[%emt 0:01:13]} 47. Be1 {[%emt 0:00:00]} Nd6 {[%emt 0:05:17]} 48. Qc5 {[%emt 0:00:00]} Bd8 {[%emt 0:00:04]} 49. Bb4 {[%emt 0:00:00]} Be7 {[%emt 0:01:59]} 50. Qc7 $36 {[%emt 0:00:00][%mdl 2048] White has good play.} Qf6 {[%emt 0:01:29]} 51. Kg1 {[%emt 0:00:00]} Ne4 {[%emt 0:02:11]} 52. Bxe4 {[%emt 0:00:00]} ({Reject} 52. Qxe7 Qxf2+ 53. Kh1 Qf3+ 54. Kg1 Nf2 55. Qf8+ (55. Bf1 Nh3+ 56. Bxh3 gxh3 57. Qe5+ Kh7 $19) 55... Kh7 56. Bxg6+ (56. Bf1 Nh3+ 57. Bxh3 gxh3) 56... Kxg6 57. Qg8+ Kf6 58. Qh8+ Kg6 59. Qg8+ Kf6 60. Qd8+ Kf5 61. Qc8+ Ke4 62. Qc2+ Nd3 $19) 52... Bxb4 {[%emt 0:00:06]} 53. Bxd5 {[%emt 0:00:00]} Be1 {[%emt 0:00:22]} 54. Qf4 {[%emt 0:00:00] Active counter play!} Qxf4 {[%emt 0:00:11]} 55. gxf4 {[%emt 0:00:00]} Bxa5 {[%emt 0:00:05] Weighted Error Value: White=0.05 (flawless) /Black=0.05 (flawless)} 1/2-1/2